Cogmind - Beta 12 @@@ ROGUE MODE // 2023.12.08 @ 00:14:57 Player: Mozco Result: Destroyed by P-80 Master with Gamma Rifle Performance ------------- Evolutions (9) 4500 Regions Visited (20) 4000 Robots Destroyed (339) 1695 Value Destroyed (16754) 16754 Prototype IDs (33) 660 Alien Tech Used (2) 400 Bonus (9937) 9937 TOTAL SCORE: 37946 Bonus ------- High Alert Combat Kills 5559 Follower Combat Kills 1673 Network Hubs Disabled 200 Built Enhanced Grunts 300 A7 Reached Mainframe 300 Met R17 at Cetus 500 Met R17 at Research 2000 Friendly Fire -595 Cogmind --------- Core Integrity 0/1600 Matter 289/300 Energy 116/325 System Corruption 31% Temperature Cool (0) Movement Core (450) Ox8 Location -1/Access Parts ------- > --- POWER (2) -------- Reinforced Antimatter Reactor > --- PROPULSION (5) --- (None) > --- UTILITY (14) ----- Advanced Target Analyzer Graphene Brace (fused) > --- WEAPON (4) ------- (None) > --- INVENTORY (5) ---- Centrium Heavy Treads Advanced Datajack Peak State ------------ > --- POWER ------------ Quantum Reactor Light Quantum Reactor > --- PROPULSION ------- Advanced Medium Treads Advanced Medium Treads High-density Centrium Heavy Treads > --- UTILITY ---------- Experimental Cooling System Experimental Cooling System Advanced Coolant Injector High-capacity Storage Unit Improved Matter Compressor Advanced Target Analyzer Advanced Target Analyzer Advanced Target Analyzer Advanced Transmission Jammer Graphene Brace Ghost Barrier Improved System Guard Experimental Field Recycling Unit > --- WEAPON ----------- Enhanced Gamma Rifle Linear Accelerator Heavy Linear Accelerator > --- INVENTORY -------- Centrium Heavy Treads Biometal Heavy Treads Myomer Leg Myomer Leg Myomer Leg Myomer Leg Biometal Leg Biometal Leg Centrium Leg Advanced Heat Sink Improved Energy Well High-capacity Matter Pod Compact Matter Pod Advanced Hacking Suite Enhanced Nova Cannon Advanced Datajack Great Maul [Rating: 192] Favorites ----------- Power Light Nuclear Core Engine Ion Engine Power Core Light Nuclear Core Reactor Quantum Reactor Propulsion Armored Treads Treads Armored Treads Leg Aluminum Leg Wheel Wheel Flight Unit Improved Flight Unit Utility High-capacity Storage Unit Device Improved Terrain Scanner Storage High-capacity Storage Unit Processor Core Analyzer Hackware System Shield Protection Improved Propulsion Shielding Weapon Railgun Energy Gun Gamma Rifle Energy Cannon Enhanced Nova Cannon Ballistic Gun Railgun Ballistic Cannon Gauss Cannon Launcher Rocket Launcher Impact Weapon Great Maul Piercing Weapon CR-A16's Pointy Stick Special Melee Weapon Datajack Build | -11 -10 -9 -8 -7 -7 -7 -7 -6 -6 -5 -5 -5 -5 -5 -4 -3 -3 -2 -2 -1 ------- Run | Jun Mat Mat Mat Fac Low Low Zio Pro Fac Fac Ext Cet Arc Hub Fac Res Qua Res Tes Acc Slots Evolved 18 | . . 2 2 2 . . . . 2 2 . . . . 2 2 . 2 . 2 Power 1 | . . . . . . . . . . . . . . . 1 . . . . . Propulsion 3 | . . 1 1 . . . . . . . . . . . . . . . . 1 Utility 12 | . . 1 1 1 . . . . 2 1 . . . . 1 2 . 2 . 1 Weapon 2 | . . . . 1 . . . . . 1 . . . . . . . . . . Parts Attached 461 | 9 12 19 29 6 1 3 7 4 35 12 43 10 14 9 46 6 29 67 71 29 Power 48 | 1 1 . 3 . . . . . 2 1 1 1 1 . 6 . 5 11 11 4 Engine 6 | 1 1 . 1 . . . . . 2 . 1 . . . . . . . . . Core 5 | . . . 2 . . . . . . 1 . . . . 2 . . . . . Reactor 37 | . . . . . . . . . . . . 1 1 . 4 . 5 11 11 4 Propulsion 73 | 3 6 10 7 1 . . . . . 2 2 3 . . 2 1 3 11 10 12 Treads 42 | 1 2 . 5 1 . . . . . 2 2 3 . . 2 1 3 11 4 5 Leg 21 | . 1 5 2 . . . . . . . . . . . . . . . 6 7 Wheel 9 | 2 3 4 . . . . . . . . . . . . . . . . . . Hover . | . . . . . . . . . . . . . . . . . . . . . Flight 1 | . . 1 . . . . . . . . . . . . . . . . . . Utility 193 | 2 3 2 11 2 1 1 4 2 19 7 22 4 7 4 26 4 12 28 28 4 Device 102 | 1 . 1 . . . . 1 . 9 4 15 1 5 2 14 3 8 20 15 3 Storage 9 | 1 2 1 2 . . . . . . 1 . . . . . . . . 2 . Processor 28 | . 1 . 3 . 1 . 1 . 4 . 2 . 1 . 3 . . 4 7 1 Hackware 6 | . . . 1 1 . . . . . 1 1 . . . . . . . 2 . Protection 48 | . . . 5 1 . 1 2 2 6 1 4 3 1 2 9 1 4 4 2 . Artifact . | . . . . . . . . . . . . . . . . . . . . . Weapon 147 | 3 2 7 8 3 . 2 3 2 14 2 18 2 6 5 12 1 9 17 22 9 Energy Gun 14 | 1 . . . . . . . . . . . . . . . . . 5 8 . Energy Cannon 11 | . . . . . . . . . . . . . . . . . . 1 2 8 Ballistic Gun 62 | 2 2 3 2 2 . . . 2 3 1 6 . 6 4 8 . 4 10 7 . Ballistic Cannon 25 | . . . 2 . . 1 2 . 2 1 4 2 . . 1 . 4 1 4 1 Launcher 13 | . . 2 2 1 . 1 . . 4 . 1 . . . 2 . . . . . Special Weapon . | . . . . . . . . . . . . . . . . . . . . . Impact Weapon 2 | . . . . . . . . . . . 2 . . . . . . . . . Slashing Weapon . | . . . . . . . . . . . . . . . . . . . . . Piercing Weapon 4 | . . . . . . . 1 . 2 . 1 . . . . . . . . . Special Melee Weapon 16 | . . 2 2 . . . . . 3 . 4 . . 1 1 1 1 . 1 . Unidentified Prototypes 26 | . . 1 . . . . 1 . 1 . . 2 1 . 2 . 3 . 15 . Corrupted Parts 4 | . . . . . . . . . . . . . 3 . . . . . 1 . System Corruption 9 | . . . . . . . . . . . . . 7 . . . . . 2 . Parts Lost 124 | . 2 . 1 . . . . 2 4 . 1 . 1 3 10 . 13 29 22 36 Power 14 | . 1 . . . . . . . . . . . . . 1 . 1 3 4 4 Propulsion 20 | . 1 . . . . . . . . . . . . . 1 . 1 6 1 10 Utility 57 | . . . 1 . . . . 2 4 . 1 . 1 2 5 . 7 11 12 11 Weapon 33 | . . . . . . . . . . . . . . 1 3 . 4 9 5 11 Highest Loss Streak 21 | . 2 . 1 . . . . 1 1 . 1 . 1 3 4 . 12 10 11 21 To Critical Strikes 1 | . . . . . . . . . . . . . . . 1 . . . . . Average Slot Usage (%) 94 | . 95 99 97 98 100 100 100 99 99 98 98 92 87 87 84 89 89 89 89 72 Engine 1 | . 14 11 3 . . . . . 4 1 1 . . . . . . . . . Core 2 | . . . 6 7 7 7 7 7 1 3 3 . . . . . . . . . Reactor 2 | . . . . . . . . . . . . 4 5 5 7 9 7 7 7 3 Treads 17 | . 5 . 18 29 30 30 30 30 26 23 21 15 11 11 10 8 10 15 10 1 Leg 2 | . . 25 16 . . . . . . . . . . . . . . . . 15 Device 10 | . 7 11 1 . . . . . 6 9 13 9 9 11 13 19 17 25 26 13 Storage 6 | . 15 11 9 7 7 7 7 7 6 5 5 5 5 5 5 4 4 4 5 7 Processor 17 | . 4 11 17 15 22 23 21 15 24 23 19 23 22 21 14 14 14 13 14 16 Protection 6 | . . . 3 7 7 7 8 14 6 5 6 6 6 5 9 13 13 5 5 . Ballistic Gun 11 | . 19 17 10 14 15 9 3 11 11 11 12 11 18 22 20 14 12 11 9 1 Ballistic Cannon 3 | . . . 6 7 7 7 11 3 2 3 4 10 3 . . 2 4 1 1 2 Launcher 1 | . . 1 . . . 5 7 7 3 5 2 . . . . . . . . . Naked Turns . | . . . . . . . . . . . . . . . . . . . . . Heaviest Build 142 | 15 26 23 55 60 60 61 66 66 75 97 100 104 107 104 135 133 124 128 142 123 Greatest Support 165 | 20 40 33 80 80 80 80 80 80 80 98 120 150 150 150 150 150 150 137 165 139 Greatest Overweight (x) 4 | . 2 1 . . . . . . . 1 1 . . . . 1 . 1 1 4 Average Overweight (x) . | . . . . . . . . . . . . . . . . . . . . . Largest Inventory Capacity 20 | 8 10 10 20 20 20 20 20 20 20 20 20 20 20 20 20 20 20 20 20 20 Average Capacity 18 | 7 9 10 14 20 20 20 20 20 20 20 20 20 20 20 20 20 20 20 20 19 Most Carried 20 | 7 10 10 20 20 20 20 20 20 20 20 20 20 20 20 20 20 20 20 20 20 Average Carried 17 | 5 8 8 13 19 19 19 19 19 19 19 19 19 19 19 18 18 15 18 19 17 Final Capacity 20 | 8 10 10 20 20 20 20 20 20 20 20 20 20 20 20 20 20 20 20 20 5 Final Carried 20 | 7 10 10 20 20 20 20 20 19 20 20 20 20 20 19 20 19 12 20 20 3 Class Distribution -------------------- 36% | Mutant 17% | Scavenger-Gunner 11% | Scavenger-Mutant 10% | Gunner 8% | Scavenger-Skirmisher 8% | Scavenger-Tank Dominant Class ---------------- Mutant | -10/Materials Mutant | -9/Materials Mutant | -8/Materials Gunner | -7/Factory Gunner | -7/Lower Caves Mutant | -7/Lower Caves Mutant | -7/Zion Mutant | -6/Proximity Caves Mutant | -6/Factory Gunner | -5/Factory Commander-Mutant | -5/Extension Commander-Gunner | -5/Cetus Scavenger-Skirmisher | -5/Archives Scavenger-Skirmisher | -5/Hub_04(d) Scavenger-Skirmisher | -4/Factory Scavenger-Tank | -3/Research Scavenger-Tank | -3/Quarantine Scavenger-Gunner | -2/Research Scavenger-Gunner | -2/Testing Scavenger-Mutant | -1/Access Resources | -11 -10 -9 -8 -7 -7 -7 -7 -6 -6 -5 -5 -5 -5 -5 -4 -3 -3 -2 -2 -1 ----------- Run | Jun Mat Mat Mat Fac Low Low Zio Pro Fac Fac Ext Cet Arc Hub Fac Res Qua Res Tes Acc Matter Collected 12954 | 320 590 291 925 45 104 166 49 431 960 279 962 153 193 303 1741 140 1053 1859 1780 610 Remotely . | . . . . . . . . . . . . . . . . . . . . . Salvage Created 17206 | 129 740 335 943 44 54 421 . 229 1317 90 1222 72 114 1067 2269 148 845 3068 2939 1160 Parts 870 | 13 52 36 65 5 2 11 . 13 57 5 58 5 5 60 98 3 36 157 155 34 Haulers Intercepted 9 | . 2 2 3 . . . . . . . . . . 1 . . . 1 . . Recyclers Shooed 10 | . 3 . 1 . . . . . 1 . . . . . . 1 2 . 2 . Parts Field Recycled 109 | . . . . . . . . . 5 19 7 . 12 . 24 . 15 2 17 8 Retrieved Matter 2177 | . . . . . . . . . 78 330 195 . 141 . 450 . 310 167 342 164 Parts Self-Destructed 25 | . . . . . 2 10 1 12 . . . . . . . . . . . . Prevented . | . . . . . . . . . . . . . . . . . . . . . Kills | -11 -10 -9 -8 -7 -7 -7 -7 -6 -6 -5 -5 -5 -5 -5 -4 -3 -3 -2 -2 -1 ------- Run | Jun Mat Mat Mat Fac Low Low Zio Pro Fac Fac Ext Cet Arc Hub Fac Res Qua Res Tes Acc Combat Hostiles Destroyed 249 | . 11 9 22 4 1 12 . 12 19 2 12 1 1 11 30 2 12 35 38 15 Melee 2 | . . . . . . . . . 1 . . . . . . . . . 1 . Guns 154 | . 11 4 12 . 1 1 . 5 12 . 7 1 1 10 28 . 6 32 22 1 Cannons 57 | . . . 6 1 . 3 . 2 2 2 4 . . . . 2 6 3 14 12 AOE 33 | . . 5 4 3 . 8 . 5 4 . 1 . . 1 2 . . . . . Classes Destroyed 22 | 2 7 1 . . . 1 . 3 3 . . . . 1 2 . 1 1 . . Worker 17 | . 1 1 2 . . . . . 4 . . . . 3 2 . . 4 . . Builder 10 | . 2 . 1 . . . . . 2 . 2 . . 1 . . 1 . 1 . Tunneler 5 | 4 . . . . . . . . 1 . . . . . . . . . . . Hauler 9 | . 2 2 3 . . . . . . . . . . 1 . . . 1 . . Recycler 17 | 1 2 1 2 . . . . . 3 . 3 . . . 2 . . 1 2 . Carrier 1 | . . . . . . . . . . . . . . 1 . . . . . . Minesweeper 1 | . . . . . . . . 1 . . . . . . . . . . . . Mechanic 6 | . . . . . . . . . 1 . . . . . 1 . 1 1 1 1 Operator 7 | . 2 . . . . . . . . . 2 . 1 . . . 1 1 . . Drone 2 | . . . . . . . . 2 . . . . . . . . . . . . Watcher 16 | . 3 2 2 . . . . . 1 . 2 . . 2 2 . . . 2 . Swarmer 29 | . 3 6 11 4 . 1 . 3 . . . . . 1 . . . . . . Saboteur 2 | . . . . . . . . . . . . . . . 1 . . . 1 . Grunt 101 | . 8 1 7 . . 9 . 6 14 . 2 . . 5 11 2 6 10 13 7 Brawler 10 | . . . . . . 1 . . 1 . . . . . 2 . 1 . 1 4 Duelist 5 | . . . . . . . . 1 . . . . . . 1 . . 1 . 2 Protector 2 | . . . . . . . . . . . . . . . 1 . . . . 1 Sentry 23 | . . 2 4 . 1 1 . . . 1 5 . 1 1 2 . . 5 . . Hunter 23 | . . . . . . . . . 2 . 2 . . 1 4 . 4 7 3 . Programmer 48 | . . . . . . . . . 2 1 3 . . 3 8 . . 11 19 1 Heavy 1 | . . . . . . . . . . . . . . . . . . 1 . . Cetus Guard 1 | . . . . . . . . . . . . 1 . . . . . . . . Alpha 7 1 | . . . . . . . . . . . . . . . . . 1 . . . Protovariant P 1 | . . . . . . . . . . . . . . . . . . . 1 . Savage 1 | . . . . . . . . . . . 1 . . . . . . . . . Best Kill Streak 12 | 4 6 10 8 4 1 9 . 6 5 1 2 1 1 4 7 2 12 10 9 5 Combat Bots Only 10 | . 3 5 6 4 1 9 . 6 4 1 2 1 1 2 6 2 9 10 9 5 Max Kills in Single Turn 3 | 1 2 3 2 3 1 3 . 2 3 1 2 1 1 3 2 1 3 2 2 1 Gunslinging 1 | . 1 . 1 . . . . 1 . . . . . 1 . . . 1 . . Exploded 3 | . . 2 2 3 . 2 . 2 2 . 1 . . 1 1 . . . . . Melee 1 | . . . . . . . . . 1 . . . . . . . . . 1 . Uniques/NPCs Destroyed . | . . . . . . . . . . . . . . . . . . . . . Combat | -11 -10 -9 -8 -7 -7 -7 -7 -6 -6 -5 -5 -5 -5 -5 -4 -3 -3 -2 -2 -1 -------- Run | Jun Mat Mat Mat Fac Low Low Zio Pro Fac Fac Ext Cet Arc Hub Fac Res Qua Res Tes Acc Damage Taken 32747 | . 493 190 640 99 . 102 . 540 1334 93 826 79 176 1278 4677 146 4084 6109 5407 6474 Core 3158 | . 121 58 112 . . 14 . 77 77 . 34 . . 60 166 11 147 346 323 1612 Absorbed by Shields 1015 | . . . . . . . . . . . 84 45 . . . . . 886 . . Reduced by Siege Mode 554 | . . . . . . . . . . . . . . . 169 . 186 . 117 82 Redirected to Shielding 951 | . . . 48 27 . 44 . 283 366 . . . . . . . . 103 80 . Regen/Repaired (Parts) 788 | . . 81 47 . . . . . . . . . . . 660 . . . . . Core Remaining (%) 80 | 100 51 85 79 . . . . 87 90 . . . . 90 85 . 87 . 53 . Volleys Fired 767 | 10 75 20 69 3 1 9 . 36 53 3 44 3 4 25 80 7 38 109 117 61 Largest 4 | 2 2 2 2 2 3 3 . 3 3 3 4 4 4 4 4 4 4 4 4 4 Hottest 426 | 70 70 46 69 72 100 105 . 96 124 106 139 166 166 138 140 166 196 240 299 426 Shots Fired 1966 | 20 149 29 129 4 3 20 . 69 117 9 121 12 15 100 290 25 113 329 314 98 Gun 1538 | 20 149 23 90 1 2 7 . 22 96 6 85 6 9 100 284 18 71 314 232 3 Cannon 384 | . . . 34 1 1 7 . 39 17 3 29 6 6 . . 7 42 15 82 95 Launcher 44 | . . 6 5 2 . 6 . 8 4 . 7 . . . 6 . . . . . Special . | . . . . . . . . . . . . . . . . . . . . . Kinetic 1674 | 10 92 23 124 2 3 14 . 61 113 9 114 12 15 100 284 25 113 288 242 30 Thermal 199 | 10 57 . . . . . . . . . . . . . . . . 32 32 68 Explosive 43 | . . 6 5 2 . 6 . 8 3 . 7 . . . 6 . . . . . Electromagnetic 50 | . . . . . . . . . 1 . . . . . . . . 9 40 . Robot Hit Streak 26 | 7 6 9 8 2 6 7 . 7 7 7 12 9 3 14 23 8 13 17 26 13 Robot Miss Streak 9 | 2 4 5 5 . 4 2 . 9 8 2 3 2 2 4 3 4 2 4 3 2 Penetration Max 2 | . . . . . . . . . . . 1 . 1 1 2 . 1 2 1 1 Secondary Targets 33 | . 2 . 2 . . . . 1 . . . . . 3 8 . 1 15 1 . Max Gunslinging Chain 1 | . 1 . 1 . . . . 1 . . . . . 1 1 . 1 1 1 . Shots Hit Robots 1352 | 13 87 22 81 1 3 15 . 35 109 8 100 7 8 59 212 15 71 231 207 68 Core Hits 819 | 6 39 21 50 9 4 31 . 43 147 9 45 2 5 36 103 4 43 102 83 37 Critical Kills 49 | . . . 1 . . . . . . . 4 . 1 4 7 2 4 15 8 3 Critical Parts Destroyed 63 | . . . . . . . . . . . 3 . 1 7 13 1 5 19 14 . Critical Strikes 160 | 1 7 . 1 1 . 1 . . 2 . 15 1 2 11 22 3 13 40 33 7 Burn 8 | 1 7 . . . . . . . . . . . . . . . . . . . Meltdown 3 | . . . . . . . . . . . . . . . . . . . 1 2 Destroy 116 | . . . 1 . . . . . . . 8 1 2 11 22 3 9 36 21 2 Blast 31 | . . . . 1 . 1 . . 2 . 7 . . . . . 4 3 10 3 Corrupt 2 | . . . . . . . . . . . . . . . . . . 1 1 . Melee Attacks 83 | . . 5 2 . . . 1 . 18 . 52 . . 1 . 3 1 . . . Impact 26 | . . . . . . . . . . . 26 . . . . . . . . . Slashing . | . . . . . . . . . . . . . . . . . . . . . Piercing 19 | . . . . . . . 1 . 15 . 3 . . . . . . . . . Sneak Attacks 48 | . . 5 1 . . . . . 11 . 26 . . 1 . 3 1 . . . Combat Hostiles . | . . . . . . . . . . . . . . . . . . . . . Follow-up Attacks . | . . . . . . . . . . . . . . . . . . . . . Damage Inflicted 42215 | 158 1203 780 1887 251 54 1002 . 1483 3179 205 2450 192 291 2349 6445 269 2344 6837 7585 3251 Guns 26786 | 158 1203 238 945 . 26 82 . 255 1523 120 1549 120 211 2109 5929 193 1258 6464 4291 112 Cannons 9959 | . . . 523 21 28 162 . 465 275 85 492 72 80 . . 76 1070 373 3104 3133 Explosions 4475 | . . 542 419 230 . 758 . 763 711 . 219 . . 199 516 . . . 118 . Melee 847 | . . . . . . . . . 657 . 190 . . . . . . . . . Ramming 148 | . . . . . . . . . 13 . . . . 41 . . 16 . 72 6 Kinetic 31756 | 71 753 238 1468 21 54 244 . 720 1798 205 2041 192 291 2109 5929 269 2328 5894 6152 979 Thermal 4529 | 87 450 . . . . . . . 163 . . . . . . . . 785 778 2266 Explosive 3943 | . . 542 419 230 . 758 . 763 496 . 219 . . . 516 . . . . . Electromagnetic 992 | . . . . . . . . . 52 . . . . 199 . . . 158 583 . Impact 62 | . . . . . . . . . . . 62 . . . . . . . . . Slashing . | . . . . . . . . . . . . . . . . . . . . . Piercing 785 | . . . . . . . . . 657 . 128 . . . . . . . . . Highest Corruption 51 | . . . . . . . . . 8 . 2 . 3 2 3 . 8 14 51 31 Average Corruption 16 | . . . . . . . . . 7 . 1 . 1 1 1 . 7 7 30 19 Corruption Purged 16 | . . . . . . . . . . . 2 . 7 . 4 . . 3 . . Corruption Blocked . | . . . . . . . . . . . . . . . . . . . . . Effects 191 | . . . . . . . . . 6 . 4 . 1 1 7 . 9 39 122 2 Message Errors 35 | . . . . . . . . . . . 2 . 1 . 2 . 1 8 21 . Matter Fused 33 | . . . . . . . . . 1 . . . . . . . 2 6 23 1 Heat Flow Errors 18 | . . . . . . . . . 1 . 1 . . . 1 . 1 6 8 . Energy Discharges 13 | . . . . . . . . . 1 . . . . . 1 . . 3 8 . Parts Rejected 2 | . . . . . . . . . . . . . . . 1 . . . 1 . Parts Fused 6 | . . . . . . . . . . . . . . . 1 . 1 2 2 . Data Loss (minor) 15 | . . . . . . . . . 1 . . . . 1 . . 1 4 8 . Data Loss (major) 8 | . . . . . . . . . . . . . . . . . 1 4 3 . Misfires 11 | . . . . . . . . . 2 . 1 . . . 1 . 1 . 6 . Alerts 5 | . . . . . . . . . . . . . . . . . . 1 4 . Misdirections 5 | . . . . . . . . . . . . . . . . . . . 4 1 Weapon Failures 40 | . . . . . . . . . . . . . . . . . 1 5 34 . Overload Shots . | . . . . . . . . . . . . . . . . . . . . . Overflow Damage 598 | . . 72 4 . . . . . 28 . 24 . . . . . 18 . 423 29 Projectiles 451 | . . . 4 . . . . . . . 2 . . . . . 18 . 398 29 Explosions 106 | . . 72 . . . . . . 28 . . . . . . . . . 6 . Melee 41 | . . . . . . . . . . . 22 . . . . . . . 19 . Knockbacks 51 | . . . 4 . . . . 6 3 . 2 2 1 . . . 5 2 17 9 Impact 1 | . . . . . . . . . . . . . . . . . . . 1 . Kinetic 47 | . . . 4 . . . . 6 3 . 2 2 1 . . . 5 2 14 8 Secondary 3 | . . . . . . . . . . . . . . . . . . . 2 1 Self-Inflicted Damage 264 | . . 33 59 24 . . . . 61 . . . . 87 . . . . . . Shots 7 | . . 2 2 1 . . . . 1 . . . . 1 . . . . . . Rammed 10 | . . . . . . . . . 1 . . . . 3 . . 2 . 1 3 Targets Rammed 12 | . . . . . . . . . 1 . . . . 3 . . 2 . 3 3 Kicked 1 | . . . . . . . . . . . . . . . . . . . 1 . Crushed 1 | . . . . . . . . . . . . . . . . . . . 1 . Highest Temperature 580 | 27 123 4 51 . 18 66 . 183 125 75 239 87 102 324 194 142 153 193 200 580 Average Temperature 65 | 12 32 4 18 . 12 33 . 48 42 36 63 44 46 90 23 76 101 70 85 173 Received Heat Transfer 4515 | . 264 54 225 . . 54 . 192 453 36 75 8 9 90 970 57 459 354 504 711 Effects 4 | . . . . . . . . . . . . . . 1 . . . . . 3 Shutdowns 1 | . . . . . . . . . . . . . . . . . . . . 1 Energy Bleed 1 | . . . . . . . . . . . . . . 1 . . . . . . Interference 1 | . . . . . . . . . . . . . . . . . . . . 1 Matter Decay 1 | . . . . . . . . . . . . . . . . . . . . 1 Siege Activations 8 | . . . . . . . . . . . . . . . 5 . 1 . 1 1 Total Turns 234 | . . . . . . . . . . . . . . . 129 . 58 . 22 25 Longest Duration 58 | . . . . . . . . . . . . . . . 38 . 58 . 22 25 Robots Corrupted . | . . . . . . . . . . . . . . . . . . . . . Combat Hostiles . | . . . . . . . . . . . . . . . . . . . . . Parts Fried 4 | . . . . . . . . . . . 1 . . 1 . . . . 2 . Impact Corruptions 3 | . . . . . . . . . . . 2 . . . . . . . 1 . Robots Melted 3 | . . . . . . . . . . . . . . . . . . . 1 2 Combat Hostiles 3 | . . . . . . . . . . . . . . . . . . . 1 2 Parts Melted 10 | . 3 . . . . . . . . . . . . . 1 . . . 1 5 Heat Transferred 5846 | 333 1850 . . . . . . . 150 . . . . . . . . 925 592 1996 Parts Sabotaged 2 | . . . . . . . . . . . . . . . . . . . 2 . Parts Stolen . | . . . . . . . . . . . . . . . . . . . . . Parts Stripped . | . . . . . . . . . . . . . . . . . . . . . Power Chain Reactions 1 | . . . . . . . . . . . . . . . . . . . 1 . Missiles Intercepted . | . . . . . . . . . . . . . . . . . . . . . Alert | -11 -10 -9 -8 -7 -7 -7 -7 -6 -6 -5 -5 -5 -5 -5 -4 -3 -3 -2 -2 -1 ------- Run | Jun Mat Mat Mat Fac Low Low Zio Pro Fac Fac Ext Cet Arc Hub Fac Res Qua Res Tes Acc Peak Influence 2095 | 25 259 272 484 165 . . . . 415 220 444 596 359 2095 1448 765 754 857 1367 982 Initial 1026 | . 16 80 89 32 . . . . 388 190 31 230 158 55 1026 723 429 423 475 801 Average 534 | 9 123 209 282 125 . . . . 302 139 139 406 321 920 1186 759 506 618 1055 824 Maximum Alert Level 5 | . 1 1 2 . . . . . 2 1 2 2 1 5 4 3 3 3 4 3 Low Security (%) 26 | 100 79 44 29 100 . . . . 12 91 75 . 12 32 . . . . . . Level 1 22 | . 20 55 27 . . . . . 82 8 15 69 87 1 . . . 1 . . Level 2 17 | . . . 43 . . . . . 4 . 9 30 . 7 . . 99 67 3 4 Level 3 19 | . . . . . . . . . . . . . . 10 31 100 . 30 61 95 Level 4 13 | . . . . . . . . . . . . . . 44 68 . . . 35 . Level 5 . | . . . . . . . . . . . . . . 3 . . . . . . High Security . | . . . . . . . . . . . . . . . . . . . . . Max Security . | . . . . . . . . . . . . . . . . . . . . . Squads Dispatched 55 | . 4 1 3 . . . . . 3 1 3 . . 9 8 . 4 6 9 4 Investigation 5 | . 2 . . . . . . . . . 2 . . 1 . . . . . . Extermination 19 | . . . . . . . . . 2 1 . . . 2 3 . 1 3 6 1 Reinforcement 18 | . 2 1 3 . . . . . 1 . 1 . . 4 1 . 2 3 . . Assault 12 | . . . . . . . . . . . . . . 1 4 . 1 . 3 3 Garrison 1 | . . . . . . . . . . . . . . 1 . . . . . . Intercept . | . . . . . . . . . . . . . . . . . . . . . Searches Triggered 1 | . . . . . . . . . 1 . . . . . . . . . . . Construction Impeded 1 | . . . . . . . . . . . . . . . 1 . . . . . Haulers Reinforced . | . . . . . . . . . . . . . . . . . . . . . Active Scanning Responses . | . . . . . . . . . . . . . . . . . . . . . Cargo Convoy Interrupts . | . . . . . . . . . . . . . . . . . . . . . Stealth | -11 -10 -9 -8 -7 -7 -7 -7 -6 -6 -5 -5 -5 -5 -5 -4 -3 -3 -2 -2 -1 --------- Run | Jun Mat Mat Mat Fac Low Low Zio Pro Fac Fac Ext Cet Arc Hub Fac Res Qua Res Tes Acc Distress Signals 22 | . 1 2 2 . . . . . . . . 2 . 5 2 2 3 1 . 2 Communications Jammed 52 | . . . . . . . . . . . . . . . . . . 16 36 . Distress Signals 51 | . . . . . . . . . . . . . . . . . . 15 36 . Times Spotted 426 | . 19 16 36 4 . 12 . 14 31 3 20 14 12 35 58 2 29 42 51 28 Peak Tracking Total 10 | . 3 4 6 4 . 8 . 3 4 1 2 5 3 8 9 2 8 7 10 8 Tactical Retreats 10 | . . . 1 . . . . . 2 . 1 . . 3 1 . . 1 . 1 Traps | -11 -10 -9 -8 -7 -7 -7 -7 -6 -6 -5 -5 -5 -5 -5 -4 -3 -3 -2 -2 -1 ------- Run | Jun Mat Mat Mat Fac Low Low Zio Pro Fac Fac Ext Cet Arc Hub Fac Res Qua Res Tes Acc Traps Triggered 12 | . 1 1 . 1 . . . . 2 . . . . 1 . . 1 1 4 . Indirectly . | . . . . . . . . . . . . . . . . . . . . . Trap Hack Attempts 88 | . . . . . . . . . . . 73 . . . 11 . . . 4 . Triggered . | . . . . . . . . . . . . . . . . . . . . . Disarmed . | . . . . . . . . . . . . . . . . . . . . . Reprogrammed 6 | . . . . . . . . . . . 4 . . . 1 . . . 1 . Reused 1 | . . . . . . . . . . . 1 . . . . . . . . . Traps Extracted . | . . . . . . . . . . . . . . . . . . . . . Installed . | . . . . . . . . . . . . . . . . . . . . . Triggered 1 | . . . . . . . . . . . 1 . . . . . . . . . Machines | -11 -10 -9 -8 -7 -7 -7 -7 -6 -6 -5 -5 -5 -5 -5 -4 -3 -3 -2 -2 -1 ---------- Run | Jun Mat Mat Mat Fac Low Low Zio Pro Fac Fac Ext Cet Arc Hub Fac Res Qua Res Tes Acc Machines Disabled 64 | . . . 2 . . . . 1 6 . 4 1 2 25 1 . 4 3 14 1 Max in Single Turn 17 | . . . 1 . . . . 1 4 . 1 . 1 17 1 . 1 1 7 1 Garrison Access 1 | . . . . . . . . . . . . . . 1 . . . . . . Network Hub 1 | . . . . . . . . . . . . . . 1 . . . . . . Machines Repaired . | . . . . . . . . . . . . . . . . . . . . . Machines Sabotaged . | . . . . . . . . . . . . . . . . . . . . . Overloaded Fab Kills . | . . . . . . . . . . . . . . . . . . . . . Hacking | -11 -10 -9 -8 -7 -7 -7 -7 -6 -6 -5 -5 -5 -5 -5 -4 -3 -3 -2 -2 -1 --------- Run | Jun Mat Mat Mat Fac Low Low Zio Pro Fac Fac Ext Cet Arc Hub Fac Res Qua Res Tes Acc Machines Accessed 56 | . 4 5 4 3 . . . . 5 3 12 1 . 4 6 1 2 2 2 2 Terminals 34 | . 3 3 3 2 . . . . 2 . 12 1 . 3 3 . 1 . 1 . Fabricators 2 | . . . . . . . . . 1 . . . . . 1 . . . . . Repair Stations 8 | . . 1 1 . . . . . 1 . . . . . 2 . 1 . 1 1 Recycling Units 5 | . 1 . . . . . . . . 2 . . . . . . . 1 . 1 Scanalyzers 5 | . . 1 . 1 . . . . 1 . . . . . . 1 . 1 . . Garrison Access 2 | . . . . . . . . . . 1 . . . 1 . . . . . . Total Hacks 159 | . 11 16 17 5 . . . . 10 9 28 3 . 10 24 3 4 9 7 3 Successful 61 | . 4 7 13 4 . . . . 1 4 10 1 . 3 7 1 1 3 2 . Failed 98 | . 7 9 4 1 . . . . 9 5 18 2 . 7 17 2 3 6 5 3 Catastrophic 18 | . . . 1 . . . . . 2 1 3 1 . 3 3 . . 2 1 1 Database Lockouts . | . . . . . . . . . . . . . . . . . . . . . Manual 42 | . 5 4 6 1 . . . . 3 2 3 1 . 6 8 . 1 . 2 . Terminals 94 | . 9 9 15 3 . . . . 3 . 28 3 . 7 14 . 1 . 2 . Fabricators 6 | . . . . . . . . . 5 . . . . . 1 . . . . . Repair Stations 26 | . . 5 2 . . . . . 1 . . . . . 9 . 3 . 5 1 Recycling Units 12 | . 2 . . . . . . . . 7 . . . . . . . 1 . 2 Scanalyzers 16 | . . 2 . 2 . . . . 1 . . . . . . 3 . 8 . . Garrison Access 5 | . . . . . . . . . . 2 . . . 3 . . . . . . Terminal Hacks 26 | . 2 . 8 2 . . . . . . 9 1 . 1 3 . . . . . Robot Schematic 1 | . . . . . . . . . . . 1 . . . . . . . . . Robot Analysis 3 | . . . 3 . . . . . . . . . . . . . . . . . Prototype ID Bank 2 | . 1 . . . . . . . . . 1 . . . . . . . . . Open Door 6 | . . . . . . . . . . . 5 1 . . . . . . . . Open DSF 1 | . . . . 1 . . . . . . . . . . . . . . . . Alert Level 1 | . . . . . . . . . . . . . . . 1 . . . . . Unreport Threat 3 | . . . 3 . . . . . . . . . . . . . . . . . Locate Traps 4 | . . . 1 . . . . . . . 1 . . 1 1 . . . . . Hauler Manifests 2 | . 1 . . 1 . . . . . . . . . . . . . . . . Zone Layout 3 | . . . 1 . . . . . . . 1 . . . 1 . . . . . Fabricator Hacks 1 | . . . . . . . . . 1 . . . . . . . . . . . Build 1 | . . . . . . . . . 1 . . . . . . . . . . . Repair Station Hacks 11 | . . 4 2 . . . . . . . . . . . 3 . 1 . 1 . Scan Component 7 | . . 2 1 . . . . . . . . . . . 2 . 1 . 1 . Repair 4 | . . 2 1 . . . . . . . . . . . 1 . . . . . Recycling Unit Hacks 4 | . . . . . . . . . . 4 . . . . . . . . . . Report Inventory 2 | . . . . . . . . . . 2 . . . . . . . . . . Retrieve Components 2 | . . . . . . . . . . 2 . . . . . . . . . . Scanalyzer 7 | . . 1 . 2 . . . . . . . . . . . 1 . 3 . . Insert Component 5 | . . 1 . 1 . . . . . . . . . . . 1 . 2 . . Analyze 2 | . . . . 1 . . . . . . . . . . . . . 1 . . Garrison Access Hacks . | . . . . . . . . . . . . . . . . . . . . . Unauthorized Hacks 12 | . 2 2 3 . . . . . . . 1 . . 2 1 . . . 1 . Terminals 10 | . 1 2 3 . . . . . . . 1 . . 1 1 . . . 1 . Assimilate 1 | . . . 1 . . . . . . . . . . . . . . . . . Botnet 9 | . 1 2 2 . . . . . . . 1 . . 1 1 . . . 1 . Fabricators . | . . . . . . . . . . . . . . . . . . . . . Repair Stations . | . . . . . . . . . . . . . . . . . . . . . Recycling Units 1 | . 1 . . . . . . . . . . . . . . . . . . . Tunnel 1 | . 1 . . . . . . . . . . . . . . . . . . . Scanalyzers . | . . . . . . . . . . . . . . . . . . . . . Garrison Access 1 | . . . . . . . . . . . . . . 1 . . . . . . Jam 1 | . . . . . . . . . . . . . . 1 . . . . . . Data Cores Recovered 1 | . . . . . . . . . . . 1 . . . . . . . . . Used 1 | . . . . . . . . . . . 1 . . . . . . . . . Hacking Detections 48 | . 3 5 4 2 . . . . 5 2 9 1 . 4 5 1 2 2 1 2 Full Trace Events 2 | . . . . . . . . . . . 2 . . . . . . . . . Feedback Events . | . . . . . . . . . . . . . . . . . . . . . Feedback Blocked . | . . . . . . . . . . . . . . . . . . . . . Robot Schematics Acquired 5 | . . . . . . . 4 . . . 1 . . . . . . . . . Robots Built 3 | . . . . . . . . . 3 . . . . . . . . . . . Authchips . | . . . . . . . . . . . . . . . . . . . . . Time 152 | . . . . . . . . . 152 . . . . . . . . . . . Total Robot Build Rating 15 | . . . . . . . . . 15 . . . . . . . . . . . Part Schematics Acquired 16 | . . . . 1 . . 14 . . . . . . . . . . 1 . . Parts Built . | . . . . . . . . . . . . . . . . . . . . . Authchips . | . . . . . . . . . . . . . . . . . . . . . Time . | . . . . . . . . . . . . . . . . . . . . . Total Part Build Rating . | . . . . . . . . . . . . . . . . . . . . . Parts Repaired 4 | . . 2 1 . . . . . . . . . . . 1 . . . . . Time 204 | . . 58 38 . . . . . . . . . . . 108 . . . . . Parts Recycled . | . . . . . . . . . . . . . . . . . . . . . Recycled Matter . | . . . . . . . . . . . . . . . . . . . . . Retrieved Matter . | . . . . . . . . . . . . . . . . . . . . . Retrieved Components 4 | . . . . . . . . . . 4 . . . . . . . . . . Parts Scanalyzed 3 | . . . . 1 . . . . . . . . . . . 1 . 1 . . Part Schematics Acquired 2 | . . . . 1 . . . . . . . . . . . . . 1 . . Parts Damaged . | . . . . . . . . . . . . . . . . . . . . . Bothacking | -11 -10 -9 -8 -7 -7 -7 -7 -6 -6 -5 -5 -5 -5 -5 -4 -3 -3 -2 -2 -1 ------------ Run | Jun Mat Mat Mat Fac Low Low Zio Pro Fac Fac Ext Cet Arc Hub Fac Res Qua Res Tes Acc Used RIF Installer . | . . . . . . . . . . . . . . . . . . . . . Robots Hacked 10 | . . 2 2 . . . . . 2 . . . . 1 . 2 1 . . . Non-combat 6 | . . 2 2 . . . . . 2 . . . . . . . . . . . Combat 4 | . . . . . . . . . . . . . . 1 . 2 1 . . . Robot Hacks Applied 13 | . . 3 2 . . . . . 3 . . . . 1 . 3 1 . . . parse_system 7 | . . 1 1 . . . . . 1 . . . . 1 . 3 . . . . find_recycling 2 | . . . 1 . . . . . 1 . . . . . . . . . . . find_station 2 | . . 1 . . . . . . 1 . . . . . . . . . . . check_alert 1 | . . 1 . . . . . . . . . . . . . . . . . . find_scanalyzer 1 | . . . . . . . . . . . . . . . . . 1 . . . Relay Couplers Released 3 | . . . . . . . . . . . . . . . . . . 3 . . Programmers 3 | . . . . . . . . . . . . . . . . . . 3 . . Fabnet Peak Effective % . | . . . . . . . . . . . . . . . . . . . . . Robots Rewired 8 | . . . . . . . . . . . 8 . . . . . . . . . Allies Hacked . | . . . . . . . . . . . . . . . . . . . . . Hacks Repelled . | . . . . . . . . . . . . . . . . . . . . . Allies | -11 -10 -9 -8 -7 -7 -7 -7 -6 -6 -5 -5 -5 -5 -5 -4 -3 -3 -2 -2 -1 -------- Run | Jun Mat Mat Mat Fac Low Low Zio Pro Fac Fac Ext Cet Arc Hub Fac Res Qua Res Tes Acc Total Allies 26 | . . . . . . . . . 3 . 18 5 . . . . . . . . Largest Group 16 | . . . . . . . . . 3 . 16 16 8 7 . . . . . . Highest-Rated Group 805 | . . . . . . . . . 87 . 623 805 633 459 . . . . . . Highest-Rated Ally 159 | . . . . . . . . . 29 . 159 159 159 96 . . . . . . Total Orders 3 | . . . . . . . . . . . . 2 . . . . . 1 . . STAY 1 | . . . . . . . . . . . . 1 . . . . . . . . GUARD 1 | . . . . . . . . . . . . 1 . . . . . . . . EXPLORE 1 | . . . . . . . . . . . . . . . . . . 1 . . Ally Attacks 251 | . . . . . . . . . 9 . 31 106 22 83 . . . . . . Total Damage 6298 | . . . . . . . . . 134 . 456 2613 798 2297 . . . . . . Kills 49 | . . . . . . . . . 1 . 3 15 4 26 . . . . . . Allies Corrupted . | . . . . . . . . . . . . . . . . . . . . . Allies Melted . | . . . . . . . . . . . . . . . . . . . . . Intel | -11 -10 -9 -8 -7 -7 -7 -7 -6 -6 -5 -5 -5 -5 -5 -4 -3 -3 -2 -2 -1 ------- Run | Jun Mat Mat Mat Fac Low Low Zio Pro Fac Fac Ext Cet Arc Hub Fac Res Qua Res Tes Acc Robot Analysis Total 3 | . . . 3 . . . . . . . . . . . . . . . . . Derelict Logs Recovered 3 | . . . . . 1 . . 2 . . . . . . . . . . . . Drone Launches 2 | . . . . . . . . . . . . . . . . . . 2 . . Drone Recoveries 2 | . . . . . . . . . . . . . . . . . . 2 . . Exploration | -11 -10 -9 -8 -7 -7 -7 -7 -6 -6 -5 -5 -5 -5 -5 -4 -3 -3 -2 -2 -1 ------------- Run | Jun Mat Mat Mat Fac Low Low Zio Pro Fac Fac Ext Cet Arc Hub Fac Res Qua Res Tes Acc Turns Passed 18847 | 123 706 590 1177 228 591 541 2008 551 1925 649 1923 423 429 554 1624 300 625 1484 1763 633 Spaces Moved 9385 | 92 466 329 592 124 345 299 1169 261 932 354 836 240 207 235 749 165 285 616 818 271 Core 10 | 2 . . . . . . . . . . . . . . . . . . . 8 Treads 7916 | 1 33 . 280 124 345 299 1169 261 932 354 836 240 207 235 749 165 285 616 774 11 Legs 863 | . . 255 312 . . . . . . . . . . . . . . . 44 252 Wheels 596 | 89 433 74 . . . . . . . . . . . . . . . . . . Hover . | . . . . . . . . . . . . . . . . . . . . . Flight . | . . . . . . . . . . . . . . . . . . . . . Fastest Speed 50 | 50 80 80 120 170 170 170 170 170 170 165 163 158 160 160 160 160 152 145 112 50 Average Speed 156 | 80 95 111 144 170 170 170 170 170 170 169 164 159 160 160 160 160 157 159 158 134 Slowest Speed 250 | 160 160 190 170 170 170 170 170 170 170 250 245 163 160 160 160 240 160 235 240 250 Overloaded Moves . | . . . . . . . . . . . . . . . . . . . . . Propulsion Burnouts . | . . . . . . . . . . . . . . . . . . . . . Robots Hopped 1 | . . . . . . . . . . . . 1 . . . . . . . . Cave-ins Triggered . | . . . . . . . . . . . . . . . . . . . . . Exploration Rate (%) 38 | 5 59 30 36 3 52 56 80 44 16 9 63 86 81 43 17 4 37 11 67 6 Regions Visited 20 Branch Regions 10 Pre-discovered Areas 3 | . 1 . . . . . 1 1 . . . . . . . . . . . . Known Exits Taken 2 | . . . . . . . . 1 1 . . . . . . . . . . . Unknown Exits Taken 18 | 1 1 1 1 1 1 1 1 . . 1 1 1 1 1 1 1 1 1 1 . Scrap Searched 8 | . . . . . 2 3 2 1 . . . . . . . . . . . . Spaces Dug 83 | . . 13 . 17 . 7 . 5 . . 39 . . . 2 . . . . . Terrain Destroyed 843 | . . 61 47 17 . 27 . 46 57 . 117 4 2 234 41 . 10 16 149 15 Melee . | . . . . . . . . . . . . . . . . . . . . . Projectile 188 | . . . 4 . . . . 17 4 . 24 4 2 35 34 . 10 12 27 15 AOE 651 | . . 61 43 17 . 27 . 29 53 . 93 . . 199 7 . . . 122 . Terrain Rammed . | . . . . . . . . . . . . . . . . . . . . . Walls Destroyed . | . . . . . . . . . . . . . . . . . . . . . Machines Disabled . | . . . . . . . . . . . . . . . . . . . . . Actions | -11 -10 -9 -8 -7 -7 -7 -7 -6 -6 -5 -5 -5 -5 -5 -4 -3 -3 -2 -2 -1 --------- Run | Jun Mat Mat Mat Fac Low Low Zio Pro Fac Fac Ext Cet Arc Hub Fac Res Qua Res Tes Acc Total 11907 | 116 578 518 792 137 347 315 1188 303 1127 397 1219 277 293 347 982 185 379 883 1080 444 Wait 716 | . 10 135 56 . . . . . 64 16 147 2 60 71 65 . 8 14 10 58 Move 9364 | 91 465 328 591 123 344 298 1168 260 931 353 835 237 206 234 748 164 284 615 818 271 Hop 1 | . . . . . . . . . . . . 1 . . . . . . . . Pick Up 174 | 5 8 4 21 3 1 2 5 2 12 6 7 9 3 3 15 3 3 35 17 10 Fast Attach 167 | 8 2 6 10 . . . 2 . 5 . 7 4 3 2 10 . 14 33 44 17 Attach 110 | . 3 4 1 4 . 1 . 2 6 2 3 3 3 3 14 3 10 20 18 10 Detach 13 | 1 1 . . 1 . . . . . . . . . . 3 . . 4 3 . Swap 185 | 1 7 9 18 2 1 2 5 2 24 10 33 3 8 4 22 3 6 14 9 2 Drop 228 | . 7 7 24 1 . 3 7 1 13 7 18 15 6 1 14 2 13 39 38 12 Fire 767 | 10 75 20 69 3 1 9 . 36 53 3 44 3 4 25 80 7 38 109 117 61 Melee 83 | . . 5 2 . . . 1 . 18 . 52 . . 1 . 3 1 . . . Ram 1 | . . . . . . . . . . . . . . . . . . . . 1 Kick . | . . . . . . . . . . . . . . . . . . . . . Crush 10 | . . . . . . . . . 1 . . . . 3 . . 2 . 2 2 Escape Stasis . | . . . . . . . . . . . . . . . . . . . . . Rewire . | . . . . . . . . . . . . . . . . . . . . . Trap 88 | . . . . . . . . . . . 73 . . . 11 . . . 4 . Miscellaneous . | . . . . . . . . . . . . . . . . . . . . . Route ------- -11/Junkyard -10/Materials (discovered 2 exits: *Mat x2) -9/Materials -8/Materials -7/Factory -7/Lower Caves -7/Lower Caves -7/Zion -6/Proximity Caves -6/Factory -5/Factory -5/Extension (discovered 2 exits: *Fac / *Cet) -5/Cetus (discovered 2 exits: *Fac / [*Arc]) -5/Archives (discovered 3 exits: *Fac / *Hub x2) -5/Hub_04(d) (discovered 2 exits: *Fac x2) -4/Factory -3/Research -3/Quarantine -2/Research -2/Testing -1/Access History --------- Turn | Location | Event 13 | -11/Junkyard | Discovered new exit (range 14) 124 | -11/Junkyard | Entered Materials 337 | -10/Materials | Build established: Mutant 403 | -10/Materials | Discovered new exit (range 15) 513 | -10/Materials | Discovered new exit (range 15) 830 | -10/Materials | Entered another Materials area 830 | -9/Materials | Evolved 2 slots: Propulsion x1, Utility x1 1347 | -9/Materials | Repaired Rocket Launcher 1385 | -9/Materials | Repaired Med. Storage Unit 1395 | -9/Materials | Discovered new exit (range 18) 1420 | -9/Materials | Entered another Materials area 1420 | -8/Materials | Evolved 2 slots: Propulsion x1, Utility x1 2471 | -8/Materials | Repaired Arm. Treads 2522 | -8/Materials | Discovered new exit (range 15) 2597 | -8/Materials | Entered Factory 2597 | -7/Factory | Evolved 2 slots: Utility x1, Weapon x1 2760 | -7/Factory | Discovered new exit (range 10) 2825 | -7/Factory | Entered Lower Caves 2906 | -7/Lower Caves | Build established: Gunner 2924 | -7/Lower Caves | Learned Factory stockpile data 3394 | -7/Lower Caves | Discovered new exit (range 8) 3416 | -7/Lower Caves | Entered another Lower Caves area 3585 | -7/Lower Caves | Attracted the attention of an 0b10 checkpoint 3618 | -7/Lower Caves | Destroyed 9 combat bots 3749 | -7/Lower Caves | Discovered new exit (range 16) 3899 | -7/Lower Caves | Build established: Mutant 3957 | -7/Lower Caves | Entered Zion 4004 | -7/Zion | Found CR-A16's Pointy Stick 4025 | -7/Zion | Given the Hacking Drone Bay 4081 | -7/Zion | Learned location of Data Miner (-6) 4181 | -7/Zion | Acquired unknown access codes intercepted by a Zionite 4285 | -7/Zion | Found Prototype Device 4285 | -7/Zion | Identified Phasing AFG 5270 | -7/Zion | Given A8's code to call for help 5321 | -7/Zion | Discovered new exit (range 15) 5965 | -7/Zion | Entered Proximity Caves 5968 | -6/Proximity Caves | Spotter reported a threat 6021 | -6/Proximity Caves | Spotter reported a threat 6305 | -6/Proximity Caves | Identified exit to Factory 6516 | -6/Proximity Caves | Entered Factory 6516 | -6/Factory | Evolved 2 slots: Utility x2 6866 | -6/Factory | Search patrols dispatched 7570 | -6/Factory | Fabricated G-50 Soldier? 7826 | -6/Factory | Discovered new exit (range 8) 8132 | -6/Factory | Identified exit to Factory 8441 | -6/Factory | Entered another Factory area 8441 | -5/Factory | Evolved 2 slots: Utility x1, Weapon x1 8909 | -5/Factory | Discovered new exit (range 15) 8981 | -5/Factory | Build established: Gunner 9090 | -5/Factory | Entered Extension 9301 | -5/Extension | Rescued a captive Derelict 10171 | -5/Extension | Build established: Scavenger-Mutant 10428 | -5/Extension | Rescued a captive Derelict 10438 | -5/Extension | Rescued a captive Derelict 10439 | -5/Extension | Rescued a captive Derelict 10544 | -5/Extension | Rescued a captive Derelict 10546 | -5/Extension | Rescued a captive Derelict 10743 | -5/Extension | Rescued A7 10767 | -5/Extension | Rescued a captive Derelict 10907 | -5/Extension | Rescued a captive Derelict 10908 | -5/Extension | Rescued a captive Derelict 10942 | -5/Extension | Build established: Commander-Mutant 10955 | -5/Extension | Discovered new exit (range 10) 10956 | -5/Extension | Discovered new exit (range 6) 11013 | -5/Extension | Entered Cetus 11013 | -5/Cetus | Accompanied by 16 allies (A7) 11018 | -5/Cetus | Acquired a Cetus Manufacturing Module code from A7 11038 | -5/Cetus | Spotted Cetus Guard 11038 | -5/Cetus | Spotted Cetus Guard 11040 | -5/Cetus | Spotted Cetus Guard 11051 | -5/Cetus | Spotted Cetus Guard 11053 | -5/Cetus | Allies destroyed Cetus Guard 11055 | -5/Cetus | Allies destroyed Cetus Guard 11061 | -5/Cetus | Allies destroyed Cetus Guard 11185 | -5/Cetus | Started Cetus Manufacturing Module 11196 | -5/Cetus | Escorted A7 to Cetus Mainframe 11210 | -5/Cetus | Manufactured an Enhanced Grunt 11235 | -5/Cetus | Manufactured an Enhanced Grunt 11260 | -5/Cetus | Manufactured an Enhanced Grunt 11285 | -5/Cetus | Manufactured an Enhanced Grunt 11287 | -5/Cetus | Discovered new exit (range 15) 11310 | -5/Cetus | Manufactured an Enhanced Grunt 11316 | -5/Cetus | Spotted Cetus Guard 11316 | -5/Cetus | Spotted Cetus Guard 11319 | -5/Cetus | Spotted Cetus Guard 11319 | -5/Cetus | Spotted Cetus Guard 11326 | -5/Cetus | Allies destroyed Cetus Guard 11330 | -5/Cetus | Destroyed Cetus Guard 11333 | -5/Cetus | Discovered new exit (range 16) 11334 | -5/Cetus | Allies destroyed Cetus Guard 11336 | -5/Cetus | Allies destroyed Cetus Guard 11349 | -5/Cetus | Met Revision 17 11436 | -5/Cetus | Entered Archives 11436 | -5/Archives | Accompanied by 9 allies (A7) 11441 | -5/Archives | Received a hacking code to weaken MAIN.C 11481 | -5/Archives | Discovered new exit (range 21) 11526 | -5/Archives | Discovered new exit (range 15) 11707 | -5/Archives | Discovered new exit (range 22) 11865 | -5/Archives | Entered Hub_04(d) 11865 | -5/Hub_04(d) | Accompanied by 7 allies 11904 | -5/Hub_04(d) | Build established: Scavenger-Skirmisher 12070 | -5/Hub_04(d) | Disrupted transfer network 12088 | -5/Hub_04(d) | Garrison activated, responded to threat 12158 | -5/Hub_04(d) | Found Exp. Thermal Shield 12165 | -5/Hub_04(d) | First assault squad dispatched 12347 | -5/Hub_04(d) | Discovered new exit (range 16) 12410 | -5/Hub_04(d) | Network Hub disabled 12413 | -5/Hub_04(d) | Lost 3 parts (2u1w) 12417 | -5/Hub_04(d) | Discovered new exit (range 15) 12419 | -5/Hub_04(d) | Entered Factory 12419 | -4/Factory | Evolved 2 slots: Power x1, Utility x1 12669 | -4/Factory | First assault squad dispatched 12846 | -4/Factory | Lost 4 parts (1p3w) 13669 | -4/Factory | Repaired Centrium Heavy Treads? 13944 | -4/Factory | Lost 3 parts (3u) 14010 | -4/Factory | Discovered new exit (range 13) 14043 | -4/Factory | Entered Research 14043 | -3/Research | Evolved 2 slots: Utility x2 14201 | -3/Research | Build established: Scavenger-Tank 14243 | -3/Research | Revision forces began assault on 0b10 14252 | -3/Research | Discovered new exit (range 9) 14257 | -3/Research | Met up with Revision 17++ 14343 | -3/Research | Entered Quarantine 14380 | -3/Quarantine | Found Alien Reactor 14380 | -3/Quarantine | Identified Matter Drive 14570 | -3/Quarantine | Build established: Scavenger-Mutant 14593 | -3/Quarantine | First assault squad dispatched 14703 | -3/Quarantine | Spotted Alpha 7 14713 | -3/Quarantine | Destroyed 9 combat bots 14769 | -3/Quarantine | Destroyed Alpha 7 14780 | -3/Quarantine | Lost 12 parts (1p1n6u4w) 14810 | -3/Quarantine | Found Prototype Device 14810 | -3/Quarantine | Identified Exp. ECM Suite 14845 | -3/Quarantine | Discovered new exit (range 10) 14943 | -3/Quarantine | Found Alien Artifact 14943 | -3/Quarantine | Identified Terrabomb 14943 | -3/Quarantine | Used Terrabomb 14968 | -3/Quarantine | Entered Research 14968 | -2/Research | Evolved 2 slots: Utility x2 15387 | -2/Research | Lost 3 parts (2u1w) 15640 | -2/Research | Build established: Scavenger-Gunner 15693 | -2/Research | Found Exp. Thermal Shield 16043 | -2/Research | Lost 3 parts (1u2w) 16048 | -2/Research | Destroyed 10 combat bots 16080 | -2/Research | System corruption reached 10% 16150 | -2/Research | Lost 10 parts (2p3n3u2w) 16291 | -2/Research | Discovered new exit (range 15) 16319 | -2/Research | Lost 6 parts (3n2u1w) 16452 | -2/Research | Entered Testing 16728 | -2/Testing | Found Prototype Processor 16728 | -2/Testing | Identified Exp. Melee Analysis Suite 17084 | -2/Testing | Spotted Striker 17084 | -2/Testing | Spotted Striker 17307 | -2/Testing | System corruption reached 30% 17390 | -2/Testing | Found Prototype Processor 17390 | -2/Testing | Identified Exp. Core Analyzer 17469 | -2/Testing | Found Prototype Energy Gun 17469 | -2/Testing | Identified Warp Gun 17703 | -2/Testing | Found Prototype Hackware 17703 | -2/Testing | Identified Ghost Barrier 17745 | -2/Testing | First assault squad dispatched 17822 | -2/Testing | Destroyed 9 combat bots 17826 | -2/Testing | Lost 11 parts (2p1n4u4w) 17850 | -2/Testing | Spotted PP-HKRBFAQP3P 17899 | -2/Testing | Destroyed PP-HKRBFAQP3P 17912 | -2/Testing | Found Prototype Energy Gun 17912 | -2/Testing | Identified Enh. Gamma Rifle 18200 | -2/Testing | Discovered new exit (range 9) 18215 | -2/Testing | Entered Access 18215 | -1/Access | Evolved 2 slots: Propulsion x1, Utility x1 18243 | -1/Access | Lost 3 parts (1p2u) 18463 | -1/Access | Lost 3 parts (1p1u1w) 18465 | -1/Access | First assault squad dispatched 18716 | -1/Access | Lost 12 parts (1p4n3u4w) 18816 | -1/Access | System corruption reached 10% 18820 | -1/Access | Core integrity fell below 50% 18836 | -1/Access | System corruption reached 30% 18837 | -1/Access | Core integrity fell below 20% 18848 | -1/Access | Destroyed by P-80 Master with Gamma Rifle Last Messages --------------- 18832_ Imp. System Guard destroyed. 18832_ M-36 Artificer repairs Flexi-carbon Leg. 18833_ U-05 Engineer builds a Wall. 18834_ P-80 Master resets L-61 Swordsman, system corruption cleaned. 18836_ K-01 Serf collects debris. 18836_ Matter Neutralizer destroyed. 18837_ Imp. Matter Compressor destroyed. 18837_ U-05 Engineer builds a Wall. 18838_ Acquired Matter Neutralizer. 18839_ K-01 Serf collects debris. 18839_ M-36 Artificer destroyed. 18841_ P-80 Master resets L-61 Swordsman, system corruption cleaned. 18842_ Matter Neutralizer destroyed. 18842_ K-01 Serf collects debris. 18842_ P-80 Master resets L-61 Swordsman, system corruption cleaned. 18843_ U-05 Engineer builds a Wall. 18843_ Acquired Rnf. Antimatter Reactor. 18845_ Slammed into L-61 Swordsman. 18846_ K-01 Serf collects debris. [Achievement: Punisher] Map ----- +----------------------------------------------------+ | ?????????????????????? ??????????? ?????????????? | | ???????????????# ??????????# ?????????????? | | #??????????????# ??????????# #????????????? | | #??????????????# ??????????# #??????? ????? | | #####????###+### #?????????# #?????? ?#??? | | ????# #?????????+ +????? ? #??? | | ?????# "#?????????# #????" ????? | | ?????# "%#?????????# #????"" ?????? | | ?????# "##????????# #??? " ??????? | | ??????# +????????# #?? ???????? | | ???????#^ ^^ ^#????????# #? ????????? | | #????????# #????????# ##+#?????????? | | #???????## [#????????# #?????????? | | #????# #?????#+## #?????????? | | #???########+## #??#### +?????????? | | ##### ## ##?# #?????????? | | + ##%%[### #""##+###+#?????????? | | ##### ##%%#"## # #?????????? | | #???# /%%% % + #?????????? | | #???# ##+####### #?????????? | | #######???# === ;% ;# ! #?????????? | | ??????????# == # % ## " #?????????? | | #?????????# == ! # p k ## """ #?????????? | | #?????????########### / % ## """ #?????????? | | #???????????????????# !g! = ## " #?????????? | | ????????????????????# !=l@ ############?????????? | | ????????????????????#*pp=== #????????????????????? | | #########???????????#=%!! = #????????????????????? | | """"" #???????????# = #????????????????????? | | ""Y"" #???????????# #????????????????????? | | #???????????# = ;#???????????????????? | | #???????????##########???????????????????? | | #????????????????????????????????????????? | | #????????????????????????????????????????? | | #????????????????????????????????????????? | | #????????????????????????????????????????? | | #########????????????????????????????????????????? | | ?????????????????????????????????????????????????? | | ?????????????????????????????????????????????????? | | ?????????????????????????????????????????????????? | | ?????????????????????????????????????????????????? | | ?????????????????????????????????????????????????? | | ?????????????????????????????????????????????????? | | ?????????????????????????????????????????????????? | | ?????????????????????????????????????????????????? | | ?????????????????????????????????????????????????? | | | | | | | | | +----------------------------------------------------+ Best States ------------- Heat Dissipation 125 Coolant Potential 100 Energy Generation 58 Energy Capacity 590 Matter Stores 600 Matter Capacity 600 Sight Range 22 Terrain Scan Range 16 Terrain Scan Density 135 Jamming Range 16 Power Amplification 40 Additional Mass Support 12 Corruption Containment 12 Armor Coverage 1810 Resistance: KI 25 Resistance: TH 30 Resistance: EX 50 Core Shielding 30 Power Shielding 66 Propulsion Shielding 66 Weapon Shielding 66 Weapon Cycling 25 Phase Shifting 15 Evasion (%) 55 Targeting Accuracy 14 Target Analysis 12 Core Analysis 6 Recoil Reduction 4 Matter Filtering 50 Kinecelleration 40 Salvage Targeting 4 Offensive Hacking 14 Defensive Hacking 20 Item Schematics ----------------- Arm. Treads | -7/Factory | Scanalyzed Mak. Cloaking Device | -7/Zion | Archive Microactuators | -7/Zion | Archive Mak. Sword | -7/Zion | Archive Adv. Signal Interpreter | -7/Zion | Archive Wave Gun | -7/Zion | Archive Mak. Hacking Suite | -7/Zion | Archive Adv. Terrain Scanner | -7/Zion | Archive Gauss Rifle | -7/Zion | Archive Proton Cannon | -7/Zion | Archive Hvy. Laser | -7/Zion | Archive Force Field | -7/Zion | Archive Coolant Injector | -7/Zion | Archive Hvy. Machine Gun | -7/Zion | Archive Hyp. Gauss Cannon | -7/Zion | Archive Centrium Heavy Treads | -2/Research | Scanalyzed Robot Schematics ------------------ A-02 Transporter | -7/Zion | Archive S-27 Virus | -7/Zion | Archive L-31 Rogue | -7/Zion | Archive X-82 Rainmaker | -7/Zion | Archive B-48 Gladiator | -5/Extension | Hacked Fabricated ------------ G-50 Soldier | x3 | -6/Factory | Preloaded Alien Tech Used ----------------- Matter Drive Terrabomb Achievements -------------- Main Advantage Punisher Revolutionary Research Challenges ------------ None Game ------ Seed PlasmaAlertBroadsword Manual? 0 Play Time 04:00:58 Cumulative 143.3 hours Start 2023.12.07 @ 19:49:09 End 2023.12.08 @ 00:14:57 Sessions 1 Manual Loads 0 Difficulty Rogue Special Mode None Game No. 106 Rogue 103 Adventurer 3 Explorer 0 Win Type - Total 1 Types 1/0/0/0/0/0/0/0/0 Lore% 69 Gallery% 77 Achievement% 59 Wizard Run 0 Options --------- ASCII 0 Keyboard 0 Movement Mouse Keybinds 0 Fullscreen 2 Font 18/SmallcapsGlow Map View 76x50 Tactical HUD 1 Map Filters NONE Filters NONE Steam 1 RUN: 9bfa0cbb-2e9e-4396-ab84-e18a6d911e60